fUST/lending_fUST_20250901
["ID","MTS","AMOUNT","RATE_DAILY","PERIOD"]
[382624229,1756683045277,-500.0,0.00016502,2]
[382624231,1756683045287,-1950.96394949,0.00016549,2]
[382624233,1756683045296,-480.0,0.00016565,2]
[382624236,1756683045306,-480.0,0.00016565,2]
[382624239,1756683045316,-480.0,0.00016565,2]
[382624241,1756683045325,-480.0,0.00016565,2]
[382624244,1756683045335,-480.0,0.00016565,2]
[382624247,1756683045344,-958.26,0.00016565,2]
[382624249,1756683045354,-480.0,0.00016565,2]
[382624251,1756683045363,-614.94830813,0.00016565,2]
[382624253,1756683045376,-848.21,0.00016565,2]
[382624255,1756683045388,-480.0,0.00016565,2]
[382624257,1756683045397,-480.0,0.00016565,2]
[382624259,1756683045408,-480.0,0.00016565,2]
[382624261,1756683045418,-1323.61,0.00016565,2]
[382624263,1756683045428,-480.0,0.00016565,2]
[382624265,1756683045438,-480.0,0.00016565,2]
[382624267,1756683045447,-620.73,0.00016565,2]
[382624269,1756683045457,-1237.94,0.00016565,2]
[382624272,1756683045466,-480.0,0.00016565,2]
[382624275,1756683045475,-480.0,0.00016565,2]
[382624278,1756683045485,-151.0,0.00016565,2]
[382624281,1756683045494,-151.0,0.00016565,2]
[382624283,1756683045504,-151.0,0.00016565,2]
[382624286,1756683045514,-1359.26,0.00016565,2]
[382624289,1756683045524,-154.702727,0.00016565,2]
[382624291,1756683045533,-480.0,0.00016565,2]
[382624294,1756683045544,-480.0,0.00016565,2]
[382624297,1756683045553,-480.0,0.00016565,2]
[382624300,1756683045563,-1076.88,0.00016565,2]
[382624303,1756683045572,-480.0,0.00016565,2]
[382624305,1756683045582,-591.45,0.00016565,2]
[382624307,1756683045591,-151.0,0.00016565,2]
[382624309,1756683045601,-480.0,0.00016565,2]
[382624311,1756683045611,-151.0,0.00016565,2]
[382624313,1756683045620,-535.71,0.00016565,2]
[382624315,1756683045632,-151.0,0.00016565,2]
[382624318,1756683045642,-270.445229,0.00016565,2]
[382624320,1756683045651,-480.0,0.00016565,2]
[382624322,1756683045660,-1191.89,0.00016565,2]
[382624324,1756683045670,-480.0,0.00016565,2]
[382624326,1756683045679,-995.91,0.00016565,2]
[382624328,1756683045689,-1030.81,0.00016565,2]
[382624330,1756683045699,-602.80437329,0.00016565,2]
[382624332,1756683045708,-1051.92,0.00016565,2]
[382624334,1756683045718,-480.0,0.00016565,2]
[382624336,1756683045727,-480.0,0.00016565,2]
[382624338,1756683045737,-480.0,0.00016565,2]
[382624340,1756683045746,-975.55,0.00016565,2]
[382624342,1756683045755,-480.0,0.00016565,2]
[382624344,1756683045764,-1321.75,0.00016565,2]
[382624345,1756683045773,-480.0,0.00016565,2]
[382624347,1756683045783,-521.13,0.00016565,2]
[382624349,1756683045793,-480.0,0.00016565,2]
[382624352,1756683045803,-480.0,0.00016565,2]
[382624354,1756683045813,-151.0,0.00016565,2]
[382624356,1756683045822,-151.0,0.00016565,2]
[382624357,1756683045831,-1681.48,0.00016565,2]
[382624359,1756683045841,-151.0,0.00016565,2]
[382624361,1756683045850,-1072.06,0.00016565,2]
[382624363,1756683045860,-151.0,0.00016565,2]
[382624365,1756683045869,-172.580756,0.00016565,2]
[382624368,1756683045880,-172.580756,0.00016565,2]
[382624369,1756683045890,-172.580756,0.00016565,2]
[382624372,1756683045900,-172.580756,0.00016565,2]
[382624373,1756683045909,-151.55384,0.00016565,2]
[382624374,1756683045918,-151.0,0.00016565,2]
[382624375,1756683045928,-599.75,0.00016565,2]
[382624376,1756683045938,-274.933796,0.00016565,2]
[382624377,1756683045947,-480.0,0.00016565,2]
[382624378,1756683045957,-274.933796,0.00016565,2]
[382624379,1756683045966,-151.0,0.00016565,2]
[382624380,1756683045975,-151.0,0.00016565,2]
[382624381,1756683045985,-151.0,0.00016565,2]
[382624382,1756683045998,-151.0,0.00016565,2]
[382624383,1756683046007,-274.933796,0.00016565,2]
[382624385,1756683046017,-151.0,0.00016565,2]
[382624387,1756683046027,-184.038744,0.00016565,2]
[382624389,1756683046038,-151.0,0.00016568,2]
[382624391,1756683046047,-151.0,0.00016568,2]
[382624393,1756683046057,-159.342596,0.00016568,2]
[382624395,1756683046067,-159.342596,0.00016568,2]
[382624397,1756683046076,-159.342596,0.00016568,2]
[382624399,1756683046085,-151.0,0.00016568,2]
[382624401,1756683046095,-159.342596,0.00016568,2]
[382624403,1756683046104,-5397.55,0.00016568,2]
[382624405,1756683046113,-1164.25,0.00016568,2]
[382624407,1756683046123,-1285.38,0.00016568,2]
[382624409,1756683046135,-480.0,0.00016568,2]
[382624411,1756683046144,-480.0,0.00016568,2]
[382624414,1756683046154,-2325.69,0.00016568,2]
[382624416,1756683046163,-698.34,0.00016568,2]
[382624418,1756683046173,-3260.05,0.00016568,2]
[382624419,1756683046183,-1256.65,0.00016568,2]
[382624422,1756683046192,-151.0,0.00016568,2]
[382624424,1756683046202,-151.0,0.00016568,2]
[382624426,1756683046212,-151.0,0.00016568,2]
[382624428,1756683046222,-606.95,0.00016568,2]
[382624430,1756683046232,-151.0,0.00016568,2]
[382624432,1756683046242,-1191.97,0.00016568,2]
[382624434,1756683046252,-8066.52242356,0.00016569,2]
[382624436,1756683046263,-480.0,0.00016569,2]
[382624438,1756683046272,-480.0,0.00016569,2]
[382624440,1756683046282,-480.0,0.00016569,2]
[382624442,1756683046292,-480.0,0.00016569,2]
[382624444,1756683046301,-480.0,0.00016569,2]
[382624446,1756683046311,-480.0,0.00016569,2]
[382624448,1756683046321,-480.0,0.00016569,2]
[382624450,1756683046330,-1193.84,0.00016569,2]
[382624452,1756683046340,-580.15751368,0.00016569,2]
[382624454,1756683046351,-480.0,0.00016569,2]
[382624456,1756683046361,-1117.47,0.00016569,2]
[382624458,1756683046370,-480.0,0.00016569,2]
[382624460,1756683046381,-480.0,0.00016569,2]
[382624462,1756683046391,-480.0,0.00016569,2]
[382624465,1756683046401,-480.0,0.00016569,2]
[382624468,1756683046410,-480.0,0.00016569,2]
[382624470,1756683046419,-480.0,0.00016569,2]
[382624472,1756683046428,-543.47,0.00016569,2]
[382624474,1756683046438,-480.0,0.00016569,2]
[382624476,1756683046449,-742.2,0.00016569,2]
[382624478,1756683046459,-583.8,0.00016569,2]
[382624480,1756683046468,-480.0,0.00016569,2]
[382624483,1756683046478,-480.0,0.00016569,2]
[382624485,1756683046487,-151.0,0.00016569,2]
[382624486,1756683046496,-480.0,0.00016569,2]
[382624488,1756683046506,-480.0,0.00016569,2]
[382624491,1756683046515,-571.97,0.00016569,2]
[382624492,1756683046525,-701.69,0.00016569,2]
[382624493,1756683046534,-480.0,0.00016569,2]
[382624494,1756683046543,-480.0,0.00016569,2]
[382624495,1756683046552,-480.0,0.00016569,2]
[382624496,1756683046562,-480.0,0.00016569,2]
[382624497,1756683046571,-480.0,0.00016569,2]
[382624498,1756683046580,-1175.52,0.00016569,2]
[382624499,1756683046589,-480.0,0.00016569,2]
[382624500,1756683046599,-480.0,0.00016569,2]
[382624501,1756683046608,-359.55014132,0.00016569,2]
[382624502,1756683046618,-151.0,0.00016569,2]
[382624503,1756683046628,-151.0,0.00016569,2]
[382624504,1756683046637,-151.0,0.00016569,2]
[382624505,1756683046647,-545.87,0.00016569,2]
[382624506,1756683046656,-480.0,0.00016569,2]
[382624507,1756683046665,-480.0,0.00016569,2]
[382624508,1756683046674,-480.0,0.00016569,2]
[382624509,1756683046684,-258.17961623,0.00016569,2]
[382624510,1756683046693,-151.0,0.00016569,2]
[382624511,1756683046702,-151.0,0.00016569,2]
[382624512,1756683046711,-151.0,0.00016569,2]
[382624513,1756683046720,-151.0,0.00016569,2]
[382624514,1756683046729,-151.0,0.00016569,2]
[382624515,1756683046739,-151.0,0.00016569,2]
[382624516,1756683046748,-596.63,0.00016569,2]
[382624517,1756683046758,-480.0,0.00016569,2]
[382624518,1756683046768,-480.0,0.00016569,2]
[382624519,1756683046777,-480.0,0.00016569,2]
[382624520,1756683046787,-151.0,0.00016569,2]
[382624521,1756683046796,-1285.09,0.00016569,2]
[382624522,1756683046805,-530.71,0.00016569,2]
[382624523,1756683046815,-510.15,0.00016569,2]
[382624524,1756683046825,-708.59,0.00016569,2]
[382624525,1756683046834,-1223.74,0.00016569,2]
[382624526,1756683046844,-480.0,0.00016569,2]
[382624527,1756683046853,-480.0,0.00016569,2]
[382624528,1756683046862,-480.0,0.00016569,2]
[382624529,1756683046871,-1204.92,0.00016569,2]
[382624530,1756683046883,-1109.81,0.00016569,2]
[382624531,1756683046892,-480.0,0.00016569,2]
[382624532,1756683046902,-480.0,0.00016569,2]
[382624533,1756683046913,-480.0,0.00016569,2]
[382624534,1756683046922,-480.0,0.00016569,2]
[382624535,1756683046931,-480.0,0.00016569,2]
[382624536,1756683046941,-590.81,0.00016569,2]
[382624537,1756683046950,-480.0,0.00016569,2]
[382624538,1756683046959,-480.0,0.00016569,2]
[382624539,1756683046968,-480.0,0.00016569,2]
[382624540,1756683046978,-480.0,0.00016569,2]
[382624541,1756683046991,-480.0,0.00016569,2]
[382624542,1756683047000,-434.75143549,0.00016569,2]
[382624543,1756683047009,-480.0,0.00016569,2]
[382624544,1756683047019,-480.0,0.00016569,2]
[382624545,1756683047029,-244.33491303,0.00016569,2]
[382624549,1756683047764,-300.0,0.00016183,2]
[382624555,1756683048375,-480.0,0.00016182,2]
[382624556,1756683048391,-180.0,0.00016183,2]
[382624557,1756683048401,-480.0,0.00016183,2]
[382624558,1756683048411,-480.0,0.00016291,2]
[382624559,1756683048421,-151.0,0.00016438,2]
[382624560,1756683048431,-1122.10344863,0.00016464,2]
[382624561,1756683048441,-151.0,0.00016565,2]
[382624562,1756683048451,-1122.10344863,0.00016565,2]
[382624563,1756683048461,-946.40508697,0.00016569,2]
[382624564,1756683048471,-841.9,0.00016569,2]
[382624565,1756683048482,-480.0,0.00016569,2]
[382624566,1756683048491,-480.0,0.00016569,2]
[382624567,1756683048501,-480.0,0.00016569,2]
[382624568,1756683048510,-667.0,0.00016569,2]
[382624569,1756683048519,-522.3,0.00016569,2]
[382624570,1756683048528,-480.0,0.00016569,2]
[382624571,1756683048537,-480.0,0.00016569,2]
[382624572,1756683048546,-480.0,0.00016569,2]
[382624573,1756683048556,-151.0,0.00016569,2]
[382624575,1756683048566,-151.0,0.00016569,2]
[382624576,1756683048575,-480.0,0.00016569,2]
[382624577,1756683048586,-480.0,0.00016569,2]
[382624578,1756683048595,-158.27277284,0.00016569,2]
[382624579,1756683048604,-271.31029319,0.00016569,2]
[382624580,1756683048614,-480.0,0.00016569,2]
[382624581,1756683048623,-480.0,0.00016569,2]
[382624582,1756683048637,-640.57,0.00016569,2]
[382624583,1756683048647,-1235.94,0.00016569,2]
[382624584,1756683048657,-480.0,0.00016569,2]
[382624585,1756683048667,-480.0,0.00016569,2]
[382624586,1756683048676,-180.909368,0.00016569,2]
[382624587,1756683048687,-180.909368,0.00016569,2]
[382624588,1756683048697,-577.83,0.00016569,2]
[382624589,1756683048707,-180.909368,0.00016569,2]
[382624590,1756683048716,-180.909368,0.00016569,2]
[382624591,1756683048726,-151.0,0.00016569,2]
[382624592,1756683048735,-151.0,0.00016569,2]
[382624593,1756683048745,-480.0,0.00016569,2]
[382624594,1756683048755,-628.49,0.00016569,2]
[382624595,1756683048765,-151.0,0.00016569,2]
[382624596,1756683048774,-151.0,0.00016569,2]
[382624597,1756683048784,-151.0,0.00016569,2]
[382624598,1756683048794,-480.0,0.00016569,2]
[382624599,1756683048803,-232.24603415,0.00016569,2]
[382624600,1756683048814,-151.0,0.00016569,2]
[382624601,1756683048823,-151.0,0.00016569,2]
[382624603,1756683048832,-528.3,0.00016569,2]
[382624605,1756683048842,-151.0,0.00016569,2]
[382624606,1756683048852,-480.0,0.00016569,2]
[382624607,1756683048862,-620.91725656,0.00016569,2]
[382624609,1756683048872,-480.0,0.00016569,2]
[382624611,1756683048883,-480.0,0.00016569,2]
[382624612,1756683048893,-480.0,0.00016569,2]
[382624613,1756683048903,-345.358856,0.00016569,2]
[382624614,1756683048914,-345.358856,0.00016569,2]
[382624615,1756683048923,-480.0,0.00016569,2]
[382624616,1756683048933,-345.358856,0.00016569,2]
[382624617,1756683048943,-345.358856,0.00016569,2]
[382624618,1756683048953,-480.0,0.00016569,2]
[382624619,1756683048962,-480.0,0.00016569,2]
[382624620,1756683048972,-151.0,0.00016569,2]
[382624621,1756683048984,-480.0,0.00016569,2]
[382624622,1756683048995,-151.0,0.00016569,2]
[382624623,1756683049005,-151.0,0.00016569,2]
[382624624,1756683049014,-480.0,0.00016569,2]
[382624625,1756683049024,-151.0,0.00016569,2]
[382624626,1756683049035,-656.04276303,0.00016569,2]
[382624632,1756683050148,-480.0,0.00016182,2]
[382624633,1756683050158,-480.0,0.00016295,2]
[382624634,1756683050168,-214.11723697,0.00016569,2]
[382624635,1756683050178,-151.0,0.00016569,2]
[382624636,1756683050187,-164.34718,0.00016569,2]
[382624637,1756683050197,-785.54,0.00016569,2]
[382624638,1756683050207,-480.0,0.00016569,2]
[382624639,1756683050217,-151.0,0.00016569,2]
[382624640,1756683050226,-761.57,0.00016569,2]
[382624641,1756683050236,-480.0,0.00016569,2]
[382624642,1756683050245,-480.0,0.00016569,2]
[382624643,1756683050255,-480.0,0.00016569,2]
[382624644,1756683050265,-551.34257114,0.00016569,2]
[382624645,1756683050274,-687.91,0.00016569,2]
[382624646,1756683050283,-480.0,0.00016569,2]
[382624647,1756683050293,-1016.96,0.00016569,2]
[382624648,1756683050302,-480.0,0.00016569,2]
[382624649,1756683050312,-480.0,0.00016569,2]
[382624650,1756683050321,-480.0,0.00016569,2]
[382624651,1756683050331,-480.0,0.00016569,2]
[382624652,1756683050341,-480.0,0.00016569,2]
[382624653,1756683050350,-480.0,0.00016569,2]
[382624654,1756683050359,-413.11432787,0.00016569,2]
[382624655,1756683050368,-480.0,0.00016569,2]
[382624656,1756683050378,-500.0,0.00016569,2]
[382624657,1756683050389,-948.35,0.00016569,2]
[382624658,1756683050400,-480.0,0.00016569,2]
[382624659,1756683050410,-480.0,0.00016569,2]
[382624660,1756683050419,-633.68,0.00016569,2]
[382624661,1756683050429,-480.0,0.00016569,2]
[382624662,1756683050439,-480.0,0.00016569,2]
[382624663,1756683050448,-563.56,0.00016569,2]
[382624664,1756683050458,-480.0,0.00016569,2]
[382624665,1756683050467,-598.24666933,0.00016569,2]
[382624666,1756683050476,-480.0,0.00016569,2]
[382624667,1756683050488,-696.42,0.00016569,2]
[382624668,1756683050497,-900.75,0.00016569,2]
[382624669,1756683050507,-1176.09374184,0.00016569,2]
[382624680,1756683164841,9184.56425318,0.00015984,2]
[382624681,1756683164953,4233.49086513,0.00015984,2]
[382624682,1756683165661,993.307584,0.00013699,2]
[382624683,1756683166801,563.4286864,0.00015941,2]
[382624686,1756683180332,4639.77739862,0.0001601,2]
[382624687,1756683189416,174.89283679,0.00015982,2]
[382624688,1756683189847,174.89283679,0.00015982,2]
[382624689,1756683190152,174.89283679,0.00015983,2]
[382624690,1756683190464,174.89283679,0.00015983,2]
[382624691,1756683190753,174.89283679,0.00015983,2]
[382624692,1756683203197,9125.54581605,0.00015112,2]
[382624693,1756683203311,874.45418395,0.00015112,2]
[382624694,1756683225683,156.06169757,0.00015982,2]
[382624695,1756683303756,403.95402107,0.000152,2]
[382624699,1756683396853,458.05812268,0.00015388,2]
[382624700,1756683436386,872.067511,0.00015082,2]
[382624701,1756683479704,687.53,0.00015185,2]
[382624702,1756683479970,687.53,0.00015185,2]
[382624703,1756683505995,880.02021908,0.00015599,2]
[382624704,1756683506288,440.01010954,0.000156,2]
[382624705,1756683524124,163.18205561,0.00016,2]
[382624706,1756683561895,163.18205561,0.00016,2]
[382624707,1756683583934,-358.87964923,0.0001608,2]
[382624708,1756683587525,-176.16977679,0.0001608,2]
[382624709,1756683590880,-446.12187677,0.0001608,2]
[382624710,1756683594087,-218.82869721,0.0001608,2]
[382624711,1756683594112,-69.94017924,0.0001608,2]
[382624712,1756683599402,-168.60608282,0.00016073,3]
[382624713,1756683601081,-187.49038957,0.00016073,3]
[382624714,1756683602406,178.56515411,0.00015774,2]
[382624715,1756683603311,-52.22352761,0.00016073,3]
[382624716,1756683603343,-199.51661605,0.0001608,2]
[382624717,1756683605640,-100.48338395,0.0001608,2]
[382624718,1756683605666,-66.91112355,0.0001608,2]
[382624719,1756683656926,-320.61407124,0.00016073,3]
[382624720,1756683660352,-125.50592876,0.00016073,3]
[382624721,1756683660377,-113.75068909,0.00016073,2]
[382624722,1756683662311,178.56515411,0.00015774,2]
[382624723,1756683662606,734.52320983,0.00015983,2]
[382624724,1756683662858,-37.24931091,0.00016073,2]
[382624725,1756683662883,-151.0,0.00016073,2]
[382624726,1756683662910,-96.24244848,0.00016073,2]
[382624727,1756683665833,-54.75755152,0.00016073,2]
[382624728,1756683665858,-168.79746656,0.00016073,2]
[382624729,1756683667814,-86.09572535,0.00016073,2]
[382624730,1756683667837,-145.90830591,0.00016073,2]
[382624731,1756683673251,-5.09169409,0.00016073,2]
[382624732,1756683673278,-160.86102226,0.00016073,2]
[382624733,1756683674888,-16.64458102,0.00016073,2]
[382624734,1756683674913,-187.78006525,0.00016073,2]
[382624735,1756683674938,-46.18402933,0.00016079,2]
[382624736,1756683705875,162.53562506,0.00015245,2]
[382624737,1756683707583,649.49235772,0.00015796,2]
[382624738,1756683711530,278.08,0.00016073,3]
[382624739,1756683722448,88.54604039,0.00016073,3]
[382624740,1756683729112,666.0,0.00015081,2]
[382624741,1756683746829,-265.91862955,0.00016073,3]
[382624742,1756683750554,-250.28426557,0.00016073,3]
[382624743,1756683752147,-229.51106449,0.00016073,3]
[382624744,1756683752173,-55.89604246,0.00016079,2]
[382624745,1756683755493,-244.10395754,0.00016079,2]
[382624746,1756683755522,-108.43486613,0.00016079,2]
[382624747,1756683760310,-185.68294368,0.00016079,2]
[382624748,1756683762109,1644.27852306,0.00015982,2]
[382624749,1756683762233,1894.7333791,0.00015982,2]
[382624750,1756683763508,-420.51196059,0.00016079,2]
[382624751,1756683766305,-196.3702296,0.00016079,2]
[382624752,1756683766328,-13.96668488,0.0001608,2]
[382624753,1756683767994,-219.12219157,0.0001608,2]
[382624754,1756683768018,-56.87076979,0.0001608,2]
[382624755,1756683769619,-238.27500175,0.0001608,2]
[382624756,1756683814286,-269.4975867,0.00016079,2]
[382624757,1756683817203,-30.5024133,0.00016079,2]
[382624758,1756683817228,-4.85422846,0.0001608,2]
[382624759,1756683817254,-163.14345682,0.0001608,2]
[382624760,1756683818971,-336.02090687,0.0001608,2]
[382624761,1756683824418,-371.03290008,0.0001608,2]
[382624762,1756683847955,-165.03320676,0.00016079,2]
[382624763,1756683881466,268.01693983,0.0001598,2]
[382624764,1756683881769,268.01693979,0.0001598,2]
[382624765,1756683882069,268.01693979,0.00015981,2]
[382624766,1756683882576,268.01693979,0.00015981,2]
[382624767,1756683882713,268.01693979,0.00015981,2]
[382624768,1756683896083,-134.96679324,0.00016079,2]
[382624769,1756683896109,-103.90672481,0.0001608,2]
[382624770,1756683899791,362.85544031,0.0001567,2]
[382624771,1756683899897,137.14455969,0.0001567,2]
[382624772,1756683907560,500.0,0.0001567,5]
[382624773,1756683915157,500.0,0.0001567,2]
[382624774,1756683922774,500.0,0.0001567,5]
[382624775,1756683930922,525.76744044,0.0001567,2]
[382624776,1756683935322,233.09979577,0.0001601,2]
[382624777,1756683945595,1000.0,0.00015082,2]
[382624780,1756683957202,-267.06083867,0.00016079,2]
[382624781,1756683959822,-32.93916133,0.00016079,2]
[382624782,1756683959847,-199.18044288,0.00016079,2]
[382624783,1756683961464,-199.18044288,0.00016079,2]
[382624784,1756683965211,-168.26188496,0.00016079,2]
[382624785,1756683966681,-179.128694,0.00016079,2]
[382624786,1756683969422,-249.28840296,0.00016079,2]
[382624787,1756683972059,-204.96013232,0.00016079,2]
[382624788,1756683972086,-40.91987118,0.00016079,2]
[382624789,1756683973684,-259.08012882,0.00016079,2]
[382624790,1756683973707,-1.11919347,0.0001608,2]
[382624791,1756683975502,-214.16707778,0.0001608,2]
[382624792,1756683980019,-264.71372875,0.0001608,2]
[382624793,1756683980045,-221.27986065,0.0001608,2]
[382624794,1756683982221,-186.02650841,0.0001608,2]
[382624795,1756683985922,-72.69363094,0.0001608,2]
[382624796,1756683985949,-217.32031386,0.0001608,2]
[382624797,1756683990711,-239.46758942,0.0001608,2]
[382624798,1756683993251,205.47882809,0.0001598,2]
[382624799,1756683993377,96.3267727,0.0001598,2]
[382624800,1756684002678,226.85594664,0.00015741,2]
[382624801,1756684003244,205.47882809,0.0001601,2]
[382624802,1756684005079,906.51636277,0.00015741,2]
[382624803,1756684006196,1063.73397761,0.00015983,2]
[382624804,1756684017529,2765.0016173,0.00015089,2]
[382624805,1756684017644,10000.01,0.00015089,2]
[382624806,1756684017760,10000.01,0.00015089,2]
[382624807,1756684017874,10000.01,0.00015089,2]
[382624808,1756684017986,6009.8323778,0.00015089,2]
[382624809,1756684038333,239.46758942,0.00015979,2]
[382624810,1756684043113,239.46758942,0.00015983,2]
[382624811,1756684096644,-200.55364376,0.00016069,2]
[382624812,1756684100159,407.5822369,0.00015741,2]
[382624813,1756684100809,-99.44635624,0.00016069,2]
[382624814,1756684100836,-52.55364376,0.0001607,2]
[382624815,1756684101997,1628.69861865,0.00015741,2]
[382624816,1756684105225,-314.25209458,0.0001607,2]
[382624817,1756684107452,-240.53584913,0.0001607,2]
[382624818,1756684111214,-152.50946757,0.0001607,2]
[382624819,1756684116083,1059.85105504,0.0001601,2]
[382624820,1756684116137,-284.90876191,0.0001607,2]
[382624821,1756684117633,-244.97043413,0.0001607,2]
[382624822,1756684117757,173.40111038,0.00015236,2]
[382624823,1756684119488,-160.0,0.0001607,2]
[382624824,1756684119521,-38.24171845,0.0001607,2]
[382624825,1756684119780,692.91083708,0.00015815,2]
[382624826,1756684122036,-205.77018515,0.0001607,2]
[382624827,1756684123545,-291.07806054,0.0001607,2]
[382624828,1756684125073,-265.31504505,0.0001607,2]
[382624829,1756684127738,-268.1740201,0.0001607,2]
[382624830,1756684130580,-197.77050349,0.0001607,2]
[382624831,1756684134004,-162.42712842,0.0001607,2]
[382624832,1756684136971,-184.0,0.0001607,2]
[382624833,1756684138200,2118.65585724,0.0001601,2]
[382624834,1756684139565,500.0,0.0001567,2]
[382624835,1756684140339,-167.30690623,0.0001607,2]
[382624836,1756684141944,-254.34940245,0.0001607,2]
[382624837,1756684144703,-171.33767119,0.0001607,2]
[382624838,1756684146951,-232.12252053,0.0001607,2]
[382624839,1756684147191,503.54887756,0.0001567,2]
[382624840,1756684162693,1009.1165004,0.0001601,2]
[382624841,1756684193946,1906.24490675,0.00015077,2]
[382624842,1756684194054,8093.75509325,0.00015077,2]
[382624843,1756684195735,-152.0,0.0001607,2]
[382624844,1756684197448,-164.69517072,0.0001607,2]
[382624845,1756684199999,-221.79796346,0.0001607,2]
[382624846,1756684223018,-155.18115816,0.00016064,2]
[382624847,1756684224851,-188.50932124,0.00016064,2]
[382624850,1756684231892,-30.10748406,0.00016064,2]
[382624851,1756684232031,-352.7543574,0.0001607,2]
[382624852,1756684232042,-381.12909574,0.0001607,2]
[382624853,1756684232052,-210.99176297,0.0001607,2]
[382624854,1756684232061,-300.0,0.00016072,2]
[382624856,1756684232070,-1156.0,0.00016072,2]
[382624857,1756684232086,-50000.0,0.00016073,2]
[382624858,1756684232095,-501.0,0.00016078,2]
[382624859,1756684232105,-518.75,0.00016078,2]
[382624860,1756684232120,-480.0,0.00016079,2]
[382624861,1756684232130,-480.0,0.00016079,2]
[382624862,1756684232140,-480.0,0.00016079,2]
[382624864,1756684232151,-1048.57,0.00016079,2]
[382624865,1756684232161,-1398.63,0.00016079,2]
[382624866,1756684232170,-923.53,0.0001608,2]
[382624867,1756684232181,-480.0,0.0001608,2]
[382624868,1756684232190,-480.0,0.0001608,2]
[382624869,1756684232200,-480.0,0.0001608,2]
[382624870,1756684232211,-480.0,0.0001608,2]
[382624871,1756684232220,-1269.69,0.0001608,2]
[382624872,1756684232231,-362.37176543,0.0001608,2]
[382624873,1756684232241,-480.0,0.0001608,2]
[382624874,1756684232251,-480.0,0.0001608,2]
[382624875,1756684232260,-480.0,0.0001608,2]
[382624876,1756684232269,-480.0,0.0001608,2]
[382624877,1756684232279,-480.0,0.0001608,2]
[382624878,1756684232288,-480.0,0.0001608,2]
[382624879,1756684232298,-543.31,0.0001608,2]
[382624880,1756684232308,-480.0,0.0001608,2]
[382624881,1756684232317,-480.0,0.0001608,2]
[382624882,1756684232328,-682.56,0.0001608,2]
[382624883,1756684232338,-619.47910626,0.0001608,2]
[382624884,1756684232348,-480.0,0.0001608,2]
[382624885,1756684232358,-480.0,0.0001608,2]
[382624886,1756684232367,-480.0,0.0001608,2]
[382624887,1756684232377,-480.0,0.0001608,2]
[382624888,1756684232392,-480.0,0.0001608,2]
[382624889,1756684232402,-590.26,0.0001608,2]
[382624890,1756684232411,-480.0,0.0001608,2]
[382624891,1756684232420,-567.44,0.0001608,2]
[382624893,1756684232431,-500.0,0.0001608,2]
[382624895,1756684232441,-500.0,0.0001608,2]
[382624896,1756684232450,-500.0,0.0001608,2]
[382624897,1756684232461,-807.84,0.0001608,2]
[382624898,1756684232472,-480.0,0.0001608,2]
[382624900,1756684232482,-308.94785863,0.0001608,2]
[382625184,1756684236405,1906.25490675,0.0001601,2]
[382625185,1756684236537,127.2589474,0.0001601,2]
[382625444,1756684241141,-480.0,0.00016079,2]
[382625445,1756684241151,-171.05214137,0.0001608,2]
[382625446,1756684241161,-480.0,0.0001608,2]